[Event "*** Titled Tuesday Blitz"]
[Site "Chess.com"]
[Date "2019.08.06"]
[Round "7"]
[White "MFguimaraes"]
[Black "LuisFSiles"]
[Result "1-0"]
[WhiteElo "2274"]
[BlackElo "2194"]
[TimeControl "180+2"]
[EndTime "14:36:53 PDT"]
[Termination "MFguimaraes won on time"]

1. e4 {[%clk 0:03:01.9]} 1... e5 {[%clk 0:02:58.9]} 2. f4 {[%clk 0:02:58.7]}
2... Bc5 {[%clk 0:02:56.5]} 3. Nf3 {[%clk 0:02:58.7]} 3... d6 {[%clk 0:02:56.9]}
4. c3 {[%clk 0:02:59.5]} 4... Nf6 {[%clk 0:02:54.3]} 5. d4 {[%clk 0:03:00.4]}
5... Bb6 {[%clk 0:02:48.5]} 6. a4 {[%clk 0:02:55]} 6... a5 {[%clk 0:02:44.1]} 7.
Bd3 {[%clk 0:02:48.2]} 7... O-O {[%clk 0:02:39.6]} 8. fxe5 {[%clk 0:02:47.1]}
8... dxe5 {[%clk 0:02:35.1]} 9. Nxe5 {[%clk 0:02:47.9]} 9... Nxe4 {[%clk
0:02:27.8]} 10. Qh5 {[%clk 0:02:40.6]} 10... Nf6 {[%clk 0:02:23.5]} 11. Qh4
{[%clk 0:02:41.1]} 11... Re8 {[%clk 0:01:55]} 12. Kd2 {[%clk 0:02:22.8]} 12...
Nc6 {[%clk 0:01:29.6]} 13. Nxc6 {[%clk 0:02:22.4]} 13... bxc6 {[%clk 0:01:31.1]}
14. Kc2 {[%clk 0:02:22.2]} 14... Qd5 {[%clk 0:01:15.5]} 15. Bd2 {[%clk
0:02:13.1]} 15... Bf5 {[%clk 0:01:09.7]} 16. Bxf5 {[%clk 0:01:46.2]} 16... Qxf5+
{[%clk 0:01:08.9]} 17. Kc1 {[%clk 0:01:46.7]} 17... Re2 {[%clk 0:00:58]} 18. Qf4
{[%clk 0:01:41.6]} 18... Qd3 {[%clk 0:00:47]} 19. Qf3 {[%clk 0:01:40.6]} 19...
Qc4 {[%clk 0:00:24.4]} 20. Na3 {[%clk 0:01:36.2]} 20... Qe6 {[%clk 0:00:25.2]}
21. Qd3 {[%clk 0:01:19.1]} 21... Re8 {[%clk 0:00:24.8]} 22. Nc4 {[%clk
0:01:17.4]} 22... Nd5 {[%clk 0:00:22.7]} 23. Ne5 {[%clk 0:01:13.5]} 23... Rxg2
{[%clk 0:00:22.2]} 24. Re1 {[%clk 0:01:05.2]} 24... Qc8 {[%clk 0:00:08.6]} 25.
Nxc6 {[%clk 0:01:01.4]} 25... Rxe1+ {[%clk 0:00:07.7]} 26. Bxe1 {[%clk
0:01:02.7]} 26... Qg4 {[%clk 0:00:07.7]} 27. Ne5 {[%clk 0:00:55.1]} 27... Qg5+
{[%clk 0:00:04.8]} 28. Bd2 {[%clk 0:00:56.3]} 28... Qh4 {[%clk 0:00:05]} 29. Nf3
{[%clk 0:00:46.9]} 29... Qh3 {[%clk 0:00:05.8]} 30. Kc2 {[%clk 0:00:41.3]} 30...
h6 {[%clk 0:00:06.3]} 31. Re1 {[%clk 0:00:39.8]} 31... g6 {[%clk 0:00:05.7]} 32.
Qe4 {[%clk 0:00:37.5]} 32... Nf6 {[%clk 0:00:03]} 33. Qf4 {[%clk 0:00:28.4]} 1-0

[Event "*** Titled Tuesday Blitz"]
[Site "Chess.com"]
[Date "2019.08.06"]
[Round "7"]
[White "Sveta10"]
[Black "PNEPaul"]
[Result "1-0"]
[WhiteElo "2067"]
[BlackElo "1750"]
[TimeControl "180+2"]
[EndTime "14:36:54 PDT"]
[Termination "Sveta10 won by resignation"]

1. e4 {[%clk 0:03:01.9]} 1... e5 {[%clk 0:02:46.3]} 2. Nf3 {[%clk 0:03:02.2]}
2... Nc6 {[%clk 0:02:46.5]} 3. d4 {[%clk 0:03:02.7]} 3... exd4 {[%clk
0:02:47.1]} 4. Bc4 {[%clk 0:03:03.4]} 4... Be7 {[%clk 0:02:47.4]} 5. Nxd4 {[%clk
0:03:02.4]} 5... d6 {[%clk 0:02:48.2]} 6. O-O {[%clk 0:03:02.4]} 6... Nf6 {[%clk
0:02:48.8]} 7. Nxc6 {[%clk 0:02:58.3]} 7... bxc6 {[%clk 0:02:49]} 8. Nc3 {[%clk
0:02:59.1]} 8... O-O {[%clk 0:02:49.3]} 9. Re1 {[%clk 0:02:54.5]} 9... Be6
{[%clk 0:02:48.8]} 10. Bb3 {[%clk 0:02:50.3]} 10... Bxb3 {[%clk 0:02:46.5]} 11.
axb3 {[%clk 0:02:52.2]} 11... d5 {[%clk 0:02:47.2]} 12. exd5 {[%clk 0:02:45.8]}
12... cxd5 {[%clk 0:02:39.5]} 13. Bg5 {[%clk 0:02:42.4]} 13... d4 {[%clk
0:02:36.2]} 14. Bxf6 {[%clk 0:02:36.6]} 14... Bxf6 {[%clk 0:02:36.2]} 15. Ne4
{[%clk 0:02:38.2]} 15... g6 {[%clk 0:02:24.8]} 16. Qd3 {[%clk 0:02:29.8]} 16...
Bg7 {[%clk 0:02:19.2]} 17. Ra4 {[%clk 0:02:29.3]} 17... f5 {[%clk 0:02:10]} 18.
Nc5 {[%clk 0:02:22.4]} 18... Qd5 {[%clk 0:02:01.1]} 19. b4 {[%clk 0:02:02.6]}
19... Rfe8 {[%clk 0:01:54]} 20. Rea1 {[%clk 0:01:59.6]} 20... Bf8 {[%clk
0:01:43.4]} 21. Nb3 {[%clk 0:01:56]} 21... Qe4 {[%clk 0:01:29.6]} 22. Qxe4
{[%clk 0:01:47.8]} 22... Rxe4 {[%clk 0:01:27.9]} 23. f3 {[%clk 0:01:49.2]} 23...
Re2 {[%clk 0:01:22.9]} 24. Nxd4 {[%clk 0:01:40.5]} 24... Rd2 {[%clk 0:01:23.6]}
25. c3 {[%clk 0:01:40.2]} 25... c5 {[%clk 0:01:20.5]} 26. Nb3 {[%clk 0:01:26.8]}
26... Rxb2 {[%clk 0:01:18.7]} 27. Nxc5 {[%clk 0:01:28]} 27... Bxc5+ {[%clk
0:01:18.7]} 28. bxc5 {[%clk 0:01:29.9]} 28... Re8 {[%clk 0:00:58.3]} 29. R4a2
{[%clk 0:01:10]} 29... Rb5 {[%clk 0:00:52]} 30. Rxa7 {[%clk 0:01:02.7]} 30...
Rxc5 {[%clk 0:00:50.3]} 31. R7a3 {[%clk 0:01:04.2]} 31... Re3 {[%clk 0:00:48.2]}
32. Rc1 {[%clk 0:01:00.8]} 32... Re2 {[%clk 0:00:48.7]} 33. Kf1 {[%clk
0:00:58.8]} 33... Rb2 {[%clk 0:00:49]} 34. Ra7 {[%clk 0:00:44.4]} 34... Rb3
{[%clk 0:00:45.6]} 35. Rd1 {[%clk 0:00:35.3]} 35... Rc8 {[%clk 0:00:44.8]} 36.
Rdd7 {[%clk 0:00:30.3]} 36... Rbxc3 {[%clk 0:00:45.2]} 37. Rg7+ {[%clk
0:00:31.1]} 37... Kf8 {[%clk 0:00:45.2]} 38. Rxh7 {[%clk 0:00:30.9]} 38... Rc1+
{[%clk 0:00:45.6]} 39. Kf2 {[%clk 0:00:31.4]} 39... Kg8 {[%clk 0:00:43.4]} 40.
Rag7+ {[%clk 0:00:30.7]} 40... Kf8 {[%clk 0:00:42.1]} 41. Rxg6 {[%clk
0:00:30.8]} 41... R1c2+ {[%clk 0:00:39.8]} 42. Kg3 {[%clk 0:00:31]} 42... f4+
{[%clk 0:00:38.7]} 43. Kxf4 {[%clk 0:00:28.1]} 43... R2c4+ {[%clk 0:00:38.5]}
44. Kg3 {[%clk 0:00:28.9]} 1-0

[Event "*** Titled Tuesday Blitz"]
[Site "Chess.com"]
[Date "2019.08.06"]
[Round "7"]
[White "stoleriu"]
[Black "imdvb6307"]
[Result "1-0"]
[WhiteElo "2505"]
[BlackElo "2392"]
[TimeControl "180+2"]
[EndTime "14:36:57 PDT"]
[Termination "stoleriu won on time"]

1. e4 {[%clk 0:03:01.9]} 1... Nc6 {[%clk 0:02:58.9]} 2. Nf3 {[%clk 0:03:00.1]}
2... d6 {[%clk 0:02:59.2]} 3. d4 {[%clk 0:03:00.8]} 3... Nf6 {[%clk 0:03:00.2]}
4. Nc3 {[%clk 0:03:01.5]} 4... Bg4 {[%clk 0:03:01.5]} 5. Bb5 {[%clk 0:03:01.1]}
5... a6 {[%clk 0:02:52]} 6. Ba4 {[%clk 0:03:00.3]} 6... b5 {[%clk 0:02:09.8]} 7.
Bb3 {[%clk 0:03:00.7]} 7... e6 {[%clk 0:02:11]} 8. Be3 {[%clk 0:03:00.3]} 8...
d5 {[%clk 0:02:07.5]} 9. exd5 {[%clk 0:02:51.9]} 9... exd5 {[%clk 0:02:05.8]}
10. h3 {[%clk 0:02:52.4]} 10... Be6 {[%clk 0:01:36.7]} 11. Ng5 {[%clk
0:02:17.6]} 11... Bb4 {[%clk 0:01:35.7]} 12. Nxe6 {[%clk 0:02:17.4]} 12... Bxc3+
{[%clk 0:01:23.7]} 13. bxc3 {[%clk 0:02:19.3]} 13... fxe6 {[%clk 0:01:24.8]} 14.
O-O {[%clk 0:02:16.9]} 14... O-O {[%clk 0:01:25.7]} 15. a4 {[%clk 0:01:53.6]}
15... Ne8 {[%clk 0:01:09.8]} 16. Qg4 {[%clk 0:01:36.1]} 16... Kf7 {[%clk
0:00:38.8]} 17. Qh5+ {[%clk 0:01:16.1]} 17... Kg8 {[%clk 0:00:38.3]} 18. axb5
{[%clk 0:01:17.2]} 18... axb5 {[%clk 0:00:38.4]} 19. Rxa8 {[%clk 0:01:19.1]}
19... Qxa8 {[%clk 0:00:39.2]} 20. f4 {[%clk 0:01:10.7]} 20... Ne7 {[%clk
0:00:31.5]} 21. g4 {[%clk 0:00:56.4]} 21... c6 {[%clk 0:00:25.8]} 22. Qh4 {[%clk
0:00:45]} 22... Rf7 {[%clk 0:00:21.5]} 23. Qe1 {[%clk 0:00:41.4]} 23... Nd6
{[%clk 0:00:19.5]} 24. Qa1 {[%clk 0:00:41.4]} 24... Rf8 {[%clk 0:00:20.6]} 25.
Kg2 {[%clk 0:00:36.1]} 25... Rd8 {[%clk 0:00:11.1]} 26. Qb2 {[%clk 0:00:37]}
26... Qb7 {[%clk 0:00:11.6]} 27. Ra1 {[%clk 0:00:38.1]} 27... Ra8 {[%clk
0:00:12.5]} 28. Ra3 {[%clk 0:00:39.6]} 28... Rxa3 {[%clk 0:00:11.9]} 29. Qxa3
{[%clk 0:00:41.5]} 29... Qb8 {[%clk 0:00:12.9]} 30. Qc5 {[%clk 0:00:41.1]} 30...
g6 {[%clk 0:00:12.6]} 31. f5 {[%clk 0:00:33.4]} 31... gxf5 {[%clk 0:00:12.7]}
32. Bf4 {[%clk 0:00:34.3]} 32... Nec8 {[%clk 0:00:13.7]} 33. gxf5 {[%clk
0:00:32.4]} 33... Qc7 {[%clk 0:00:12.9]} 34. fxe6 {[%clk 0:00:33.2]} 34... Kf8
{[%clk 0:00:06.2]} 35. Bxd5 {[%clk 0:00:29.1]} 1-0

[Event "*** Titled Tuesday Blitz"]
[Site "Chess.com"]
[Date "2019.08.06"]
[Round "7"]
[White "HomayoonTofighi"]
[Black "Micki-taryan"]
[Result "1-0"]
[WhiteElo "2862"]
[BlackElo "2962"]
[TimeControl "180+2"]
[EndTime "14:36:59 PDT"]
[Termination "HomayoonTofighi won by resignation"]

1. d4 {[%clk 0:03:01.9]} 1... Nf6 {[%clk 0:03:00.5]} 2. Nf3 {[%clk 0:03:02.7]}
2... e6 {[%clk 0:03:01.7]} 3. g3 {[%clk 0:03:03]} 3... b6 {[%clk 0:02:56.8]} 4.
Bg2 {[%clk 0:03:03.7]} 4... Bb7 {[%clk 0:02:58.3]} 5. O-O {[%clk 0:03:05.1]}
5... Be7 {[%clk 0:02:59.6]} 6. c4 {[%clk 0:03:06.3]} 6... O-O {[%clk 0:03:00.8]}
7. Nc3 {[%clk 0:03:05.8]} 7... d5 {[%clk 0:02:59.6]} 8. Ne5 {[%clk 0:03:06.6]}
8... Nbd7 {[%clk 0:02:56.3]} 9. Qa4 {[%clk 0:03:07]} 9... c6 {[%clk 0:02:57]}
10. Nxc6 {[%clk 0:03:07.2]} 10... Bxc6 {[%clk 0:02:58.9]} 11. Qxc6 {[%clk
0:03:09.1]} 11... Rc8 {[%clk 0:03:00.8]} 12. Qa4 {[%clk 0:03:10.2]} 12... Rxc4
{[%clk 0:03:02.3]} 13. Qxa7 {[%clk 0:03:11.3]} 13... Rxd4 {[%clk 0:03:00.3]} 14.
b3 {[%clk 0:03:07.7]} 14... Bc5 {[%clk 0:02:35]} 15. Na4 {[%clk 0:03:06.4]}
15... Qa8 {[%clk 0:02:17.8]} 16. Qxa8 {[%clk 0:03:03.6]} 16... Rxa8 {[%clk
0:02:19.7]} 17. e3 {[%clk 0:03:01]} 17... Rdxa4 {[%clk 0:01:43]} 18. bxa4 {[%clk
0:03:01.5]} 18... Rxa4 {[%clk 0:01:44.9]} 19. Bb2 {[%clk 0:02:59.3]} 19... Kf8
{[%clk 0:01:44.1]} 20. Rfb1 {[%clk 0:02:51.9]} 20... Ke7 {[%clk 0:01:43.2]} 21.
Bf1 {[%clk 0:02:47.1]} 21... Ne4 {[%clk 0:01:37.6]} 22. Bb5 {[%clk 0:02:45.1]}
22... Ra7 {[%clk 0:01:39.1]} 23. a4 {[%clk 0:02:35.1]} 23... f6 {[%clk
0:01:33.3]} 24. Kg2 {[%clk 0:02:36.4]} 24... Ne5 {[%clk 0:01:29.5]} 25. Bd4
{[%clk 0:02:34.1]} 25... Nd6 {[%clk 0:01:22.3]} 26. a5 {[%clk 0:02:07.8]} 26...
Nxb5 {[%clk 0:00:56.7]} 27. axb6 {[%clk 0:02:05]} 27... Bxb6 {[%clk 0:00:50.8]}
28. Rxa7+ {[%clk 0:02:02.9]} 28... Bxa7 {[%clk 0:00:51.3]} 29. Bxa7 {[%clk
0:01:53.1]} 29... Nc3 {[%clk 0:00:27]} 30. Rb7+ {[%clk 0:01:51.2]} 30... Nd7
{[%clk 0:00:28.2]} 31. Bc5+ {[%clk 0:01:48.5]} 31... Ke8 {[%clk 0:00:29.6]} 32.
Bd6 {[%clk 0:01:45.4]} 32... Ne4 {[%clk 0:00:30.5]} 33. Bb4 {[%clk 0:01:45.9]}
33... Ng5 {[%clk 0:00:25.9]} 34. h4 {[%clk 0:01:38.4]} 34... Nf7 {[%clk
0:00:25.9]} 35. h5 {[%clk 0:01:35]} 35... Nfe5 {[%clk 0:00:27.4]} 36. Bd6 {[%clk
0:01:28.3]} 36... Nc4 {[%clk 0:00:27.6]} 37. Bb4 {[%clk 0:01:29.3]} 37... Nce5
{[%clk 0:00:29]} 38. Ra7 {[%clk 0:01:29]} 38... Nc6 {[%clk 0:00:29.4]} 39. Ra8+
{[%clk 0:01:29.9]} 39... Kf7 {[%clk 0:00:31]} 40. Ba3 {[%clk 0:01:29.8]} 40...
Nce5 {[%clk 0:00:28]} 41. Rd8 {[%clk 0:01:26.8]} 41... g5 {[%clk 0:00:06.5]} 42.
f4 {[%clk 0:01:26.5]} 42... gxf4 {[%clk 0:00:04.9]} 43. exf4 {[%clk 0:01:28.4]}
43... Nc4 {[%clk 0:00:04.9]} 44. Rxd7+ {[%clk 0:01:29.1]} 1-0

[Event "*** Titled Tuesday Blitz"]
[Site "Chess.com"]
[Date "2019.08.06"]
[Round "7"]
[White "temus_galaktionov"]
[Black "olksuna"]
[Result "1-0"]
[WhiteElo "2696"]
[BlackElo "2532"]
[TimeControl "180+2"]
[EndTime "14:37:02 PDT"]
[Termination "temus_galaktionov won by resignation"]

1. d4 {[%clk 0:03:01.9]} 1... d5 {[%clk 0:03:00.9]} 2. Nf3 {[%clk 0:03:02.9]}
2... e6 {[%clk 0:03:01.7]} 3. c4 {[%clk 0:03:04]} 3... Nf6 {[%clk 0:03:03.2]} 4.
Nc3 {[%clk 0:03:04.6]} 4... Be7 {[%clk 0:03:04.4]} 5. Bf4 {[%clk 0:03:05.1]}
5... O-O {[%clk 0:03:04.8]} 6. e3 {[%clk 0:03:05.9]} 6... b6 {[%clk 0:03:06.4]}
7. Bd3 {[%clk 0:03:06.2]} 7... dxc4 {[%clk 0:03:03.4]} 8. Bxc4 {[%clk
0:03:08.1]} 8... Bb7 {[%clk 0:03:04.1]} 9. O-O {[%clk 0:03:07.9]} 9... a6 {[%clk
0:03:00.5]} 10. Rc1 {[%clk 0:03:06.2]} 10... b5 {[%clk 0:02:57.4]} 11. Bd3
{[%clk 0:03:04.8]} 11... c5 {[%clk 0:02:57.7]} 12. dxc5 {[%clk 0:03:03.8]} 12...
Nbd7 {[%clk 0:02:54.7]} 13. b4 {[%clk 0:02:58.6]} 13... Bxf3 {[%clk 0:02:46.6]}
14. gxf3 {[%clk 0:02:53.1]} 14... Rc8 {[%clk 0:02:25.1]} 15. a3 {[%clk 0:02:51]}
15... e5 {[%clk 0:02:13.2]} 16. Bg3 {[%clk 0:02:50.4]} 16... Re8 {[%clk
0:02:13.3]} 17. Bc2 {[%clk 0:02:38.2]} 17... Qc7 {[%clk 0:02:02]} 18. Nd5 {[%clk
0:02:31.8]} 18... Nxd5 {[%clk 0:02:02.2]} 19. Qxd5 {[%clk 0:02:33.5]} 19... Bf6
{[%clk 0:01:57.7]} 20. Rfd1 {[%clk 0:02:31.6]} 20... Nf8 {[%clk 0:01:58.3]} 21.
Qd6 {[%clk 0:02:31.2]} 21... Qa7 {[%clk 0:01:57]} 22. Qd5 {[%clk 0:02:14]} 22...
h5 {[%clk 0:01:55.3]} 23. Qe4 {[%clk 0:02:11.6]} 23... Qe7 {[%clk 0:01:53.8]}
24. h3 {[%clk 0:02:11.1]} 24... g6 {[%clk 0:01:50.7]} 25. Bb3 {[%clk 0:02:08.6]}
25... Kg7 {[%clk 0:01:45]} 26. Rc2 {[%clk 0:01:58.7]} 26... Nh7 {[%clk
0:01:32.8]} 27. h4 {[%clk 0:01:43.5]} 27... g5 {[%clk 0:01:26.5]} 28. hxg5
{[%clk 0:01:42.9]} 28... Nxg5 {[%clk 0:01:27.1]} 29. Qf5 {[%clk 0:01:44]} 29...
Rc7 {[%clk 0:01:12.3]} 30. Rcd2 {[%clk 0:01:38.4]} 30... Rh8 {[%clk 0:00:57.9]}
31. Rd7 {[%clk 0:01:35.5]} 31... Rxd7 {[%clk 0:00:59.2]} 32. Rxd7 {[%clk
0:01:36]} 32... Qe8 {[%clk 0:00:58.3]} 33. Rd6 {[%clk 0:01:35.3]} 33... Rh6
{[%clk 0:00:53.7]} 34. Rxf6 {[%clk 0:01:23.4]} 34... Rxf6 {[%clk 0:00:54.4]} 35.
Qxg5+ {[%clk 0:01:24.8]} 35... Rg6 {[%clk 0:00:51.9]} 36. Qxh5 {[%clk
0:01:25.6]} 36... f6 {[%clk 0:00:50.9]} 37. Kf1 {[%clk 0:01:23.1]} 37... Qd7
{[%clk 0:00:27.5]} 38. Ke2 {[%clk 0:01:23.7]} 38... a5 {[%clk 0:00:20.1]} 39.
Qh1 {[%clk 0:01:20.8]} 39... a4 {[%clk 0:00:20.6]} 40. Ba2 {[%clk 0:01:17.5]}
40... Rh6 {[%clk 0:00:15.9]} 41. Qd1 {[%clk 0:01:16.2]} 41... Qf5 {[%clk
0:00:14.1]} 42. Qd3 {[%clk 0:01:15.2]} 42... Qxd3+ {[%clk 0:00:11.8]} 43. Kxd3
{[%clk 0:01:16.1]} 43... Rh1 {[%clk 0:00:13.7]} 44. Kc2 {[%clk 0:01:16.2]} 44...
Ra1 {[%clk 0:00:12.8]} 45. Kb2 {[%clk 0:01:17.3]} 45... Rd1 {[%clk 0:00:14]} 46.
Be6 {[%clk 0:01:10.6]} 46... Kf8 {[%clk 0:00:13.9]} 47. c6 {[%clk 0:01:11.7]}
47... Ke7 {[%clk 0:00:13.2]} 48. c7 {[%clk 0:01:12.8]} 1-0

[Event "*** Titled Tuesday Blitz"]
[Site "Chess.com"]
[Date "2019.08.06"]
[Round "7"]
[White "ArnaudovP"]
[Black "GM_shahin"]
[Result "1-0"]
[WhiteElo "2678"]
[BlackElo "2875"]
[TimeControl "180+2"]
[EndTime "14:37:10 PDT"]
[Termination "ArnaudovP won by resignation"]

1. Nf3 {[%clk 0:03:01.9]} 1... d5 {[%clk 0:03:00.5]} 2. c4 {[%clk 0:03:01.9]}
2... e6 {[%clk 0:03:00.4]} 3. g3 {[%clk 0:03:02.2]} 3... dxc4 {[%clk 0:03:01.1]}
4. Bg2 {[%clk 0:03:04.1]} 4... c5 {[%clk 0:02:59.7]} 5. Na3 {[%clk 0:03:03.1]}
5... Nc6 {[%clk 0:02:57.7]} 6. Nxc4 {[%clk 0:03:04.1]} 6... Be7 {[%clk
0:02:53.5]} 7. O-O {[%clk 0:03:04.4]} 7... Nh6 {[%clk 0:02:50.7]} 8. b3 {[%clk
0:02:49.1]} 8... Bf6 {[%clk 0:02:49.8]} 9. Bb2 {[%clk 0:02:49.4]} 9... Bxb2
{[%clk 0:02:50]} 10. Nxb2 {[%clk 0:02:49.8]} 10... O-O {[%clk 0:02:50.2]} 11.
Rc1 {[%clk 0:02:49.8]} 11... Qd6 {[%clk 0:02:01.6]} 12. Nc4 {[%clk 0:02:18.3]}
12... Qe7 {[%clk 0:02:02.6]} 13. Nce5 {[%clk 0:02:13.7]} 13... Nxe5 {[%clk
0:01:48.7]} 14. Nxe5 {[%clk 0:02:14.2]} 14... Rb8 {[%clk 0:01:50.3]} 15. Qc2
{[%clk 0:02:14.2]} 15... f6 {[%clk 0:01:10.6]} 16. Nf3 {[%clk 0:02:13.8]} 16...
b6 {[%clk 0:01:09.2]} 17. d4 {[%clk 0:02:14.5]} 17... Ba6 {[%clk 0:00:52.3]} 18.
dxc5 {[%clk 0:02:13.4]} 18... bxc5 {[%clk 0:00:54.2]} 19. Qxc5 {[%clk
0:02:08.5]} 19... Qxc5 {[%clk 0:00:55.3]} 20. Rxc5 {[%clk 0:02:09.5]} 20... Bxe2
{[%clk 0:00:56.9]} 21. Re1 {[%clk 0:02:10.6]} 21... Bxf3 {[%clk 0:00:57.6]} 22.
Bxf3 {[%clk 0:02:10.7]} 22... e5 {[%clk 0:00:52.8]} 23. Ra5 {[%clk 0:02:00.6]}
23... Nf5 {[%clk 0:00:51.2]} 24. Rxa7 {[%clk 0:01:59]} 24... Nd4 {[%clk
0:00:52.5]} 25. Bd5+ {[%clk 0:01:59.5]} 25... Kh8 {[%clk 0:00:54.1]} 26. Kg2
{[%clk 0:01:59.7]} 26... Rfd8 {[%clk 0:00:51.3]} 27. Bc4 {[%clk 0:02:00.3]}
27... Nc2 {[%clk 0:00:50]} 28. Re2 {[%clk 0:01:58]} 28... Nb4 {[%clk 0:00:50.5]}
29. Rc7 {[%clk 0:01:50]} 29... h5 {[%clk 0:00:39.9]} 30. a3 {[%clk 0:01:46.2]}
30... Nd3 {[%clk 0:00:36.2]} 31. Re3 {[%clk 0:01:27.7]} 31... Nb2 {[%clk
0:00:34]} 32. Bf7 {[%clk 0:01:25]} 32... Nd1 {[%clk 0:00:31.2]} 33. Re2 {[%clk
0:01:24.3]} 33... Rd3 {[%clk 0:00:27.4]} 34. Rec2 {[%clk 0:01:21.6]} 34... Kh7
{[%clk 0:00:26.9]} 35. Bxh5 {[%clk 0:01:18.2]} 35... Rbxb3 {[%clk 0:00:27.6]}
36. Be2 {[%clk 0:01:07.9]} 36... Rd4 {[%clk 0:00:26.5]} 37. a4 {[%clk
0:01:03.3]} 37... Ra3 {[%clk 0:00:24.8]} 38. R7c4 {[%clk 0:00:54.4]} 38... Rxc4
{[%clk 0:00:18.4]} 39. Rxc4 {[%clk 0:00:54.9]} 39... Nb2 {[%clk 0:00:18.2]} 40.
Rc8 {[%clk 0:00:45.4]} 40... Rxa4 {[%clk 0:00:17.9]} 41. Rb8 {[%clk 0:00:45.6]}
41... Ra8 {[%clk 0:00:13.4]} 42. Rxa8 {[%clk 0:00:45.2]} 1-0

[Event "*** Titled Tuesday Blitz"]
[Site "Chess.com"]
[Date "2019.08.06"]
[Round "7"]
[White "ElHelvetico"]
[Black "GianmarcoVaR"]
[Result "1-0"]
[WhiteElo "2694"]
[BlackElo "2567"]
[TimeControl "180+2"]
[EndTime "14:37:10 PDT"]
[Termination "ElHelvetico won by checkmate"]

1. e4 {[%clk 0:03:01.9]} 1... c5 {[%clk 0:02:55.2]} 2. Nf3 {[%clk 0:03:01.8]}
2... d6 {[%clk 0:02:55.1]} 3. d4 {[%clk 0:03:03.2]} 3... cxd4 {[%clk 0:02:56.7]}
4. Nxd4 {[%clk 0:03:05.1]} 4... Nf6 {[%clk 0:02:56.5]} 5. Nc3 {[%clk 0:03:06.6]}
5... a6 {[%clk 0:02:58.1]} 6. Qd3 {[%clk 0:03:07.6]} 6... Nc6 {[%clk 0:02:58.2]}
7. Bg5 {[%clk 0:03:07.4]} 7... Bd7 {[%clk 0:02:58.6]} 8. O-O-O {[%clk
0:03:01.2]} 8... Rc8 {[%clk 0:02:50.7]} 9. f4 {[%clk 0:02:59.5]} 9... e6 {[%clk
0:02:40.3]} 10. Kb1 {[%clk 0:02:39.1]} 10... Be7 {[%clk 0:02:37.6]} 11. Nf3
{[%clk 0:02:26.4]} 11... Ng4 {[%clk 0:02:12]} 12. Bxe7 {[%clk 0:02:21.6]} 12...
Nxe7 {[%clk 0:02:13.5]} 13. Qd4 {[%clk 0:01:50.5]} 13... e5 {[%clk 0:01:26.3]}
14. fxe5 {[%clk 0:01:40.4]} 14... Nc6 {[%clk 0:01:24.7]} 15. Qxd6 {[%clk
0:01:37.3]} 15... Nf2 {[%clk 0:01:25.4]} 16. Bc4 {[%clk 0:01:32.9]} 16... Nxd1
{[%clk 0:00:14.5]} 17. Rxd1 {[%clk 0:01:21.7]} 17... Qe7 {[%clk 0:00:08.5]} 18.
Ng5 {[%clk 0:01:21.2]} 18... Nxe5 {[%clk 0:00:04.2]} 19. Qxe7+ {[%clk
0:00:57.7]} 19... Kxe7 {[%clk 0:00:05]} 20. Nd5+ {[%clk 0:00:59.6]} 20... Ke8
{[%clk 0:00:04.6]} 21. Bb3 {[%clk 0:00:58.8]} 21... Be6 {[%clk 0:00:04]} 22.
Nxe6 {[%clk 0:00:48.6]} 22... fxe6 {[%clk 0:00:05.4]} 23. Nf4 {[%clk 0:00:48.1]}
23... Ke7 {[%clk 0:00:06.1]} 24. Nxe6 {[%clk 0:00:48.8]} 24... Rc6 {[%clk
0:00:06.6]} 25. Nxg7 {[%clk 0:00:49]} 25... Rhc8 {[%clk 0:00:04.9]} 26. Nf5+
{[%clk 0:00:49.9]} 26... Kf6 {[%clk 0:00:06.3]} 27. Rf1 {[%clk 0:00:46.2]} 27...
Kg6 {[%clk 0:00:06.4]} 28. Ne7+ {[%clk 0:00:46.8]} 28... Kg5 {[%clk 0:00:07.1]}
29. Nxc8 {[%clk 0:00:47]} 29... Rxc8 {[%clk 0:00:08.2]} 30. Rf5+ {[%clk
0:00:47.6]} 30... Kg6 {[%clk 0:00:07.4]} 31. Rxe5 {[%clk 0:00:48.6]} 31... Rd8
{[%clk 0:00:09.3]} 32. Bd5 {[%clk 0:00:48.2]} 32... Rf8 {[%clk 0:00:09.6]} 33.
a4 {[%clk 0:00:48.5]} 33... Rf1+ {[%clk 0:00:09.1]} 34. Ka2 {[%clk 0:00:49.1]}
34... Rf2 {[%clk 0:00:11]} 35. Re6+ {[%clk 0:00:45.6]} 35... Kg5 {[%clk
0:00:12]} 36. Re7 {[%clk 0:00:46.6]} 36... Kg6 {[%clk 0:00:13]} 37. Rxb7 {[%clk
0:00:46.7]} 37... Rxc2 {[%clk 0:00:14.2]} 38. Rb6+ {[%clk 0:00:47.6]} 38... Kg5
{[%clk 0:00:15.8]} 39. Rxa6 {[%clk 0:00:49.2]} 39... Rxg2 {[%clk 0:00:16.3]} 40.
Ra7 {[%clk 0:00:50.4]} 40... Kf4 {[%clk 0:00:15.8]} 41. a5 {[%clk 0:00:51]}
41... Rxh2 {[%clk 0:00:16.8]} 42. a6 {[%clk 0:00:52]} 42... h6 {[%clk
0:00:18.2]} 43. Rf7+ {[%clk 0:00:53.4]} 43... Ke5 {[%clk 0:00:19.4]} 44. a7
{[%clk 0:00:54.9]} 44... Kd4 {[%clk 0:00:21.3]} 45. a8=Q {[%clk 0:00:55.4]}
45... h5 {[%clk 0:00:23.2]} 46. Qa7+ {[%clk 0:00:56.2]} 46... Ke5 {[%clk
0:00:24.8]} 47. Rf5+ {[%clk 0:00:54.8]} 47... Kd6 {[%clk 0:00:24.5]} 48. Qb6+
{[%clk 0:00:56]} 48... Ke7 {[%clk 0:00:25.7]} 49. Rf7+ {[%clk 0:00:56.7]} 49...
Ke8 {[%clk 0:00:26.9]} 50. Qb8# {[%clk 0:00:58.2]} 1-0